[Event "Nové Hrady - Blesk"]
[Site "Nové Hrady, Czech Republic"]
[Date "2023.08.17"]
[Round "7.9"]
[White "Garabik, Marek"]
[Black "Richtrova, Eliska"]
[Result "0-1"]
[TimeControl "2x3+2s"]
[WhiteFideId "23717742"]
[BlackFideId "300683"]
[WhiteElo "1578"]
[BlackElo "2122"]

1. e4 {[%clk 00:03:02]} {[%emt 00:00:02]} c6 {[%clk 00:03:02]} {[%emt
00:00:02]} 2. d4 {[%clk 00:03:03]} d6 {[%clk 00:03:03]} {[%emt 00:00:02]} 3.
Nf3 {[%clk 00:02:50]} {[%emt 00:00:15]} Nd7 {[%clk 00:03:04]} 4. c4 {[%clk
00:02:47]} {[%emt 00:00:05]} g6 {[%clk 00:03:05]} 5. b3 {[%clk 00:02:46]}
{[%emt 00:00:05]} Bg7 {[%clk 00:03:06]} 6. Bb2 {[%clk 00:02:47]} {[%emt
00:00:02]} Ngf6 {[%clk 00:03:03]} {[%emt 00:00:05]} 7. Nbd2 {[%clk 00:02:46]}
{[%emt 00:00:02]} O-O {[%clk 00:03:02]} {[%emt 00:00:03]} 8. Bd3 {[%clk
00:02:47]} a5 {[%clk 00:03:03]} {[%emt 00:00:02]} 9. O-O {[%emt 00:00:01]} a4
10. bxa4 {[%clk 00:02:42]} {[%emt 00:00:07]} Qa5 {[%clk 00:02:55]} {[%emt
00:00:11]} 11. Bc2 {[%emt 00:00:20]} Nb6 {[%clk 00:02:45]} {[%emt 00:00:11]} 12.
Re1 {[%clk 00:01:55]} {[%emt 00:00:33]} Qb4 {[%clk 00:02:17]} {[%emt 00:00:31]}
13. Rb1 {[%clk 00:01:43]} {[%emt 00:00:13]} Nxa4 {[%clk 00:02:10]} {[%emt
00:00:09]} 14. Ba1 {[%clk 00:01:35]} {[%emt 00:00:09]} Qa5 {[%clk 00:02:11]} 15.
Nb3 {[%clk 00:01:35]} {[%emt 00:00:04]} Qa6 {[%clk 00:02:09]} {[%emt 00:00:03]}
16. Nbd2 {[%clk 00:01:07]} {[%emt 00:00:30]} Rd8 {[%clk 00:01:27]} {[%emt
00:00:44]} 17. d5 {[%clk 00:00:48]} {[%emt 00:00:21]} c5 {[%clk 00:01:22]}
{[%emt 00:00:07]} 18. Re3 {[%clk 00:00:17]} {[%emt 00:00:33]} Nb6 {[%clk
00:01:08]} {[%emt 00:00:16]} 19. Reb3 {[%clk 00:00:18]} {[%emt 00:00:02]} Nbd7
{[%clk 00:00:46]} {[%emt 00:00:23]} 20. Bb2 {[%clk 00:00:12]} {[%emt 00:00:08]}
b6 {[%clk 00:00:45]} {[%emt 00:00:03]} 21. Bc3 {[%clk 00:00:07]} {[%emt
00:00:07]} Qb7 {[%clk 00:00:43]} {[%emt 00:00:04]} 22. a4 {[%clk 00:00:07]}
{[%emt 00:00:03]} Rxa4 {[%clk 00:00:37]} {[%emt 00:00:08]} 23. Rb5 {[%clk
00:00:07]} {[%emt 00:00:02]} Ra6 {[%clk 00:00:36]} {[%emt 00:00:02]} 24. Bd3
{[%clk 00:00:04]} {[%emt 00:00:05]} Qc7 {[%clk 00:00:37]} 25. Qb3 {[%clk
00:00:05]} Ng4 {[%clk 00:00:34]} {[%emt 00:00:06]} 26. Bxg7 {[%emt 00:00:02]}
Kxg7 27. h3 {[%clk 00:00:04]} {[%emt 00:00:02]} Nge5 {[%clk 00:00:37]} 28. Be2
{[%clk 00:00:03]} {[%emt 00:00:04]} f6 {[%clk 00:00:35]} {[%emt 00:00:04]} 29.
Nxe5 {[%clk 00:00:04]} dxe5 {[%clk 00:00:33]} {[%emt 00:00:04]} 30. f3 {[%clk
00:00:05]} Bb7 {[%clk 00:00:33]} {[%emt 00:00:04]} 31. Rb2 {[%clk 00:00:05]}
{[%emt 00:00:02]} Rda8 {[%clk 00:00:34]} 32. Rb1 {[%clk 00:00:06]} Ra3 {[%clk
00:00:35]} {[%emt 00:00:03]} 33. Qd1 {[%clk 00:00:05]} {[%emt 00:00:03]} R8a6
{[%clk 00:00:33]} {[%emt 00:00:04]} 34. Nb3 {[%clk 00:00:05]} {[%emt 00:00:02]}
Nf8 {[%clk 00:00:24]} {[%emt 00:00:10]} 35. Nxc5 {[%emt 00:00:06]} bxc5 {[%emt
00:00:03]} 36. Rxb7 Qd8 {[%clk 00:00:23]} {[%emt 00:00:01]} 37. Qc1 {[%clk
00:00:05]} {[%emt 00:00:02]} Nd7 {[%clk 00:00:21]} {[%emt 00:00:03]} 38. Qb2
{[%clk 00:00:06]} Ra2 {[%clk 00:00:22]} {[%emt 00:00:03]} 39. Qb5 {[%clk
00:00:06]} {[%emt 00:00:02]} R6a5 {[%clk 00:00:22]} 40. Qxd7 {[%clk 00:00:07]}
{[%emt 00:00:02]} Qxd7 {[%clk 00:00:23]} {[%emt 00:00:01]} 41. Rxd7 {[%clk
00:00:08]} Rxe2 {[%clk 00:00:24]} 42. Rxe7+ {[%clk 00:00:09]} Kh6 {[%clk
00:00:25]} 43. Rbb7 {[%clk 00:00:09]} {[%emt 00:00:06]} Kg5 {[%clk 00:00:26]}
44. Rb1 {[%clk 00:00:09]} {[%emt 00:00:03]} Raa2 {[%clk 00:00:27]} {[%emt
00:00:01]} 45. d6 {[%clk 00:00:10]} Rxg2+ {[%clk 00:00:27]} {[%emt 00:00:02]}
46. Kf1 {[%clk 00:00:11]} Raf2+ {[%clk 00:00:28]} {[%emt 00:00:03]} 47. Ke1
{[%clk 00:00:12]} {[%emt 00:00:01]} Rxf3 {[%clk 00:00:22]} {[%emt 00:00:07]} 48.
d7 {[%clk 00:00:07]} {[%emt 00:00:07]} Re3+ {[%clk 00:00:23]} 49. Kf1 {[%clk
00:00:07]} {[%emt 00:00:03]} Rd2 {[%clk 00:00:25]} 50. Re1 {[%clk 00:00:06]}
{[%emt 00:00:04]} Red3 {[%clk 00:00:26]} 51. Rxh7 {[%clk 00:00:05]} {[%emt
00:00:03]} Rxd7 {[%clk 00:00:26]} {[%emt 00:00:02]} 52. h4+ {[%clk 00:00:05]}
{[%emt 00:00:03]} Kg4 {[%clk 00:00:27]} 53. Rh6 {[%clk 00:00:05]} {[%emt
00:00:02]} Rg7 {[%clk 00:00:27]} {[%emt 00:00:02]} 54. Rh8 {[%clk 00:00:05]}
{[%emt 00:00:02]} Kf3 {[%clk 00:00:28]} 55. Rf8 {[%clk 00:00:05]} {[%emt
00:00:02]} Rd6 {[%clk 00:00:26]} {[%emt 00:00:05]} 56. Rc8 {[%clk 00:00:05]}
{[%emt 00:00:02]} Rh7 {[%clk 00:00:27]} 57. Rxc5 {[%clk 00:00:03]} {[%emt
00:00:05]} Rxh4 {[%clk 00:00:28]} 58. Kg1 {[%clk 00:00:04]} Rd2 {[%clk
00:00:27]} {[%emt 00:00:05]} 59. Rd5 {[%clk 00:00:04]} {[%emt 00:00:02]} Rg2+
{[%clk 00:00:28]} 0-1

[Event "Nové Hrady - Blesk"]
[Site "Nové Hrady, Czech Republic"]
[Date "2023.08.17"]
[Round "7.10"]
[White "Mácová, Markéta"]
[Black "Valenz, Miroslav"]
[Result "0-1"]
[TimeControl "2x3+2s"]
[WhiteFideId "23715588"]
[BlackFideId "326283"]
[WhiteElo "1304"]
[BlackElo "1929"]

1. d4 {[%clk 00:03:03]} Nf6 {[%clk 00:03:03]} 2. c4 {[%clk 00:03:04]} {[%emt
00:00:02]} d6 {[%clk 00:03:04]} 3. Nc3 {[%clk 00:03:05]} {[%emt 00:00:02]} g6
{[%clk 00:03:06]} 4. Bg5 {[%clk 00:03:05]} {[%emt 00:00:03]} Bg7 {[%clk
00:03:07]} 5. Nf3 {[%clk 00:03:06]} O-O {[%clk 00:03:07]} {[%emt 00:00:03]} 6.
e3 {[%clk 00:03:07]} Nbd7 {[%clk 00:03:08]} 7. Be2 {[%clk 00:03:08]} c5 {[%clk
00:03:09]} 8. Qc2 {[%clk 00:03:04]} {[%emt 00:00:10]} b6 {[%clk 00:03:11]} 9.
O-O {[%clk 00:03:01]} {[%emt 00:00:06]} Bb7 {[%clk 00:03:12]} 10. Rac1 {[%clk
00:02:58]} {[%emt 00:00:05]} h6 {[%clk 00:03:12]} 11. Bxf6 {[%clk 00:02:57]}
{[%emt 00:00:04]} Nxf6 {[%clk 00:03:11]} {[%emt 00:00:04]} 12. Rfd1 {[%clk
00:02:56]} {[%emt 00:00:03]} a6 {[%clk 00:03:05]} {[%emt 00:00:08]} 13. a4
{[%clk 00:02:35]} {[%emt 00:00:24]} Qc7 {[%clk 00:03:04]} {[%emt 00:00:03]} 14.
b3 {[%clk 00:02:31]} {[%emt 00:00:06]} Rad8 {[%clk 00:02:56]} {[%emt 00:00:10]}
15. Bd3 {[%clk 00:02:20]} {[%emt 00:00:12]} h5 {[%clk 00:02:50]} {[%emt
00:00:08]} 16. Ng5 {[%clk 00:02:01]} {[%emt 00:00:21]} Bh6 {[%clk 00:02:45]}
{[%emt 00:00:07]} 17. Nh3 {[%clk 00:01:28]} {[%emt 00:00:35]} Ng4 {[%clk
00:02:26]} {[%emt 00:00:21]} 18. d5 {[%clk 00:01:23]} {[%emt 00:00:08]} f5
{[%clk 00:02:17]} {[%emt 00:00:11]} 19. Qe2 {[%clk 00:01:06]} {[%emt 00:00:18]}
Qd7 {[%clk 00:02:10]} {[%emt 00:00:09]} 20. f3 {[%clk 00:00:53]} {[%emt
00:00:15]} Ne5 {[%clk 00:02:05]} {[%emt 00:00:07]} 21. Bc2 {[%clk 00:00:52]}
{[%emt 00:00:03]} e6 {[%clk 00:02:05]} {[%emt 00:00:02]} 22. dxe6 {[%clk
00:00:47]} {[%emt 00:00:06]} Qxe6 {[%clk 00:02:06]} {[%emt 00:00:02]} 23. f4
{[%clk 00:00:42]} {[%emt 00:00:07]} Ng4 {[%clk 00:02:03]} {[%emt 00:00:05]} 24.
Re1 {[%clk 00:00:28]} {[%emt 00:00:16]} Rfe8 {[%clk 00:02:00]} {[%emt
00:00:05]} 25. Nd1 {[%clk 00:00:28]} {[%emt 00:00:03]} d5 {[%clk 00:01:51]}
{[%emt 00:00:11]} 26. cxd5 {[%clk 00:00:23]} {[%emt 00:00:07]} Qxd5 {[%clk
00:01:40]} {[%emt 00:00:13]} 27. Qf1 {[%clk 00:00:13]} {[%emt 00:00:12]} Kh7
{[%clk 00:01:31]} {[%emt 00:00:10]} 28. Nhf2 {[%clk 00:00:14]} Qd2 {[%clk
00:00:44]} {[%emt 00:00:49]} 29. Nxg4 {[%clk 00:00:07]} {[%emt 00:00:09]} hxg4
{[%clk 00:00:45]} 30. Qf2 {[%clk 00:00:08]} {[%emt 00:00:02]} Qxc1 {[%clk
00:00:44]} {[%emt 00:00:03]} 31. Qf1 {[%clk 00:00:07]} {[%emt 00:00:03]} Qxc2
{[%clk 00:00:45]} {[%emt 00:00:02]} 32. Re2 {[%clk 00:00:08]} Qxd1 {[%clk
00:00:44]} {[%emt 00:00:03]} 33. Qxd1 {[%clk 00:00:07]} {[%emt 00:00:03]} Rxd1+
{[%clk 00:00:45]} 34. Kf2 {[%clk 00:00:08]} Red8 {[%clk 00:00:44]} {[%emt
00:00:05]} 35. Kg3 {[%clk 00:00:07]} {[%emt 00:00:03]} R1d2 {[%clk 00:00:44]}
{[%emt 00:00:02]} 36. Re1 {[%clk 00:00:08]} {[%emt 00:00:01]} g5 {[%clk
00:00:38]} {[%emt 00:00:09]} 37. fxg5 {[%clk 00:00:08]} Bxg5 {[%clk 00:00:39]}
38. h3 {[%clk 00:00:07]} {[%emt 00:00:05]} Rxg2# {[%clk 00:00:38]} {[%emt
00:00:02]} 0-1

[Event "Nové Hrady - Blesk"]
[Site "Nové Hrady, Czech Republic"]
[Date "2023.08.17"]
[Round "8.1"]
[White "Pulpan, Jakub"]
[Black "Steinbauer, Sebastian"]
[Result "1-0"]
[TimeControl "2x3+2s"]
[WhiteFideId "302759"]
[BlackFideId "399272"]
[WhiteElo "2452"]
[BlackElo "1660"]

1. b3 {[%clk 00:03:03]} {[%emt 00:00:02]} Nc6 {[%clk 00:02:59]} {[%emt
00:00:05]} 2. Bb2 {[%clk 00:03:03]} {[%emt 00:00:02]} e5 {[%clk 00:03:00]}
{[%emt 00:00:01]} 3. Nf3 {[%clk 00:03:04]} f6 {[%clk 00:02:52]} {[%emt
00:00:11]} 4. d4 {[%clk 00:03:02]} {[%emt 00:00:04]} exd4 {[%clk 00:02:50]}
{[%emt 00:00:04]} 5. Nxd4 {[%clk 00:03:03]} Nxd4 {[%clk 00:02:51]} 6. Qxd4
{[%clk 00:03:03]} {[%emt 00:00:05]} Bd6 {[%clk 00:02:36]} {[%emt 00:00:17]} 7.
Nc3 {[%clk 00:02:48]} {[%emt 00:00:16]} Ne7 {[%clk 00:02:31]} {[%emt 00:00:07]}
8. O-O-O {[%clk 00:02:44]} {[%emt 00:00:06]} Be5 {[%clk 00:02:20]} {[%emt
00:00:13]} 9. Qe4 {[%clk 00:02:04]} {[%emt 00:00:43]} c6 {[%clk 00:02:14]}
{[%emt 00:00:07]} 10. f4 {[%clk 00:01:59]} {[%emt 00:00:07]} d5 {[%clk
00:02:09]} {[%emt 00:00:07]} 11. Qf3 {[%clk 00:01:53]} {[%emt 00:00:08]} Bd6
{[%clk 00:02:03]} {[%emt 00:00:09]} 12. e4 {[%clk 00:01:53]} {[%emt 00:00:02]}
Qa5 {[%clk 00:01:58]} {[%emt 00:00:07]} 13. exd5 {[%clk 00:01:49]} {[%emt
00:00:06]} Ba3 {[%clk 00:01:47]} {[%emt 00:00:12]} 14. d6 {[%clk 00:01:41]}
{[%emt 00:00:10]} Ng6 {[%clk 00:01:04]} {[%emt 00:00:45]} 15. Bc4 {[%clk
00:01:19]} {[%emt 00:00:24]} Bd7 {[%clk 00:00:49]} {[%emt 00:00:17]} 16. Rhe1+
{[%emt 00:00:02]} Kd8 17. Bxa3 {[%clk 00:01:10]} {[%emt 00:00:11]} Qxa3+ {[%clk
00:00:50]} {[%emt 00:00:02]} 18. Kb1 {[%clk 00:01:11]} a5 {[%clk 00:00:40]}
{[%emt 00:00:13]} 19. Nb5 {[%clk 00:01:03]} {[%emt 00:00:10]} cxb5 {[%clk
00:00:25]} {[%emt 00:00:17]} 20. Qxb7 {[%clk 00:01:04]} Bc6 {[%clk 00:00:09]}
{[%emt 00:00:20]} 21. Qc7# 1-0

[Event "Nové Hrady - Blesk"]
[Site "Nové Hrady, Czech Republic"]
[Date "2023.08.17"]
[Round "8.2"]
[White "Vybiral, Zdenek"]
[Black "Zeman, Matyas"]
[Result "0-1"]
[TimeControl "2x3+2s"]
[WhiteFideId "305200"]
[BlackFideId "364398"]
[WhiteElo "2158"]
[BlackElo "2254"]

1. e4 {[%clk 00:03:03]} {[%emt 00:08:06]} e5 {[%clk 00:03:01]} {[%emt
00:00:03]} 2. Nf3 {[%clk 00:03:02]} {[%emt 00:00:03]} Nc6 {[%clk 00:03:02]}
{[%emt 00:00:01]} 3. Bb5 {[%clk 00:03:00]} {[%emt 00:00:04]} Nf6 {[%clk
00:03:02]} {[%emt 00:00:02]} 4. d3 {[%clk 00:02:58]} {[%emt 00:00:04]} Bc5
{[%clk 00:02:56]} {[%emt 00:00:09]} 5. c3 {[%clk 00:02:53]} {[%emt 00:00:07]}
O-O {[%clk 00:02:45]} {[%emt 00:00:12]} 6. Bg5 {[%clk 00:02:39]} {[%emt
00:00:16]} h6 {[%clk 00:02:40]} {[%emt 00:00:07]} 7. Bh4 {[%clk 00:02:40]} Re8
{[%clk 00:01:46]} {[%emt 00:00:57]} 8. Nbd2 {[%clk 00:02:33]} {[%emt 00:00:08]}
Be7 {[%clk 00:01:08]} {[%emt 00:00:40]} 9. Qe2 {[%clk 00:02:17]} {[%emt
00:00:17]} d6 {[%clk 00:01:09]} {[%emt 00:00:03]} 10. h3 {[%clk 00:02:13]}
{[%emt 00:00:05]} Bd7 {[%clk 00:01:05]} {[%emt 00:00:05]} 11. g4 {[%clk
00:01:41]} {[%emt 00:00:34]} Nh7 {[%clk 00:01:01]} {[%emt 00:00:07]} 12. Bg3
{[%emt 00:00:07]} a6 13. Ba4 {[%clk 00:01:36]} b5 {[%clk 00:01:02]} {[%emt
00:00:04]} 14. Bb3 {[%clk 00:01:35]} {[%emt 00:00:03]} Na5 {[%clk 00:01:02]}
{[%emt 00:00:02]} 15. Bc2 {[%clk 00:01:36]} {[%emt 00:00:01]} c5 {[%clk
00:00:59]} {[%emt 00:00:05]} 16. h4 {[%clk 00:01:23]} {[%emt 00:00:14]} Bxg4
{[%clk 00:00:59]} {[%emt 00:00:02]} 17. O-O-O {[%clk 00:01:19]} {[%emt
00:00:06]} b4 {[%clk 00:00:55]} {[%emt 00:00:06]} 18. cxb4 {[%clk 00:01:17]}
{[%emt 00:00:04]} cxb4 {[%clk 00:00:56]} 19. Kb1 {[%clk 00:01:18]} {[%emt
00:00:02]} Nf8 {[%clk 00:00:50]} {[%emt 00:00:08]} 20. Nb3 {[%clk 00:01:07]}
{[%emt 00:00:13]} Nxb3 {[%clk 00:00:49]} {[%emt 00:00:03]} 21. Bxb3 {[%clk
00:01:08]} Ne6 {[%clk 00:00:45]} {[%emt 00:00:07]} 22. Bxe6 {[%clk 00:01:02]}
{[%emt 00:00:07]} Bxe6 {[%clk 00:00:45]} {[%emt 00:00:02]} 23. d4 {[%clk
00:01:02]} {[%emt 00:00:03]} Qa5 {[%clk 00:00:23]} {[%emt 00:00:23]} 24. b3
{[%clk 00:01:00]} {[%emt 00:00:04]} Rac8 {[%clk 00:00:13]} {[%emt 00:00:12]} 25.
Rc1 {[%clk 00:00:50]} {[%emt 00:00:12]} Rc3 {[%clk 00:00:09]} {[%emt 00:00:06]}
26. dxe5 {[%emt 00:00:06]} d5 27. Nd4 {[%clk 00:00:37]} {[%emt 00:00:10]} dxe4
{[%clk 00:00:07]} {[%emt 00:00:06]} 28. Nc6 {[%clk 00:00:29]} {[%emt 00:00:11]}
Qc5 {[%clk 00:00:06]} {[%emt 00:00:03]} 29. Nxe7+ {[%clk 00:00:29]} {[%emt
00:00:02]} Rxe7 {[%clk 00:00:07]} 30. Qxe4 {[%clk 00:00:26]} {[%emt 00:00:05]}
g6 {[%clk 00:00:07]} {[%emt 00:00:02]} 31. Rxc3 {[%clk 00:00:23]} {[%emt
00:00:04]} Qxc3 {[%clk 00:00:06]} {[%emt 00:00:04]} 32. Rc1 Bf5 {[%emt
00:00:02]} 33. Qxf5 {[%clk 00:00:15]} {[%emt 00:00:11]} Qxc1+ {[%clk 00:00:06]}
{[%emt 00:00:03]} 34. Kxc1 {[%clk 00:00:16]} gxf5 {[%clk 00:00:07]} 35. Kd2
{[%clk 00:00:15]} {[%emt 00:00:05]} Rd7+ {[%clk 00:00:06]} {[%emt 00:00:04]} 36.
Ke3 {[%clk 00:00:15]} Kf8 {[%clk 00:00:07]} 37. Kf4 {[%clk 00:00:15]} {[%emt
00:00:03]} Rd2 {[%clk 00:00:07]} 38. Kxf5 {[%clk 00:00:14]} {[%emt 00:00:04]}
Rxa2 {[%clk 00:00:09]} 39. Bf4 {[%clk 00:00:14]} {[%emt 00:00:04]} Rxf2 {[%clk
00:00:09]} 40. Ke4 {[%clk 00:00:15]} h5 {[%clk 00:00:07]} {[%emt 00:00:05]} 41.
Be3 {[%clk 00:00:13]} {[%emt 00:00:04]} Rh2 {[%clk 00:00:07]} {[%emt 00:00:02]}
42. Bc5+ {[%clk 00:00:14]} Ke8 {[%clk 00:00:08]} {[%emt 00:00:02]} 43. Kf5
{[%clk 00:00:13]} {[%emt 00:00:02]} Rxh4 {[%clk 00:00:09]} 44. Kg5 {[%clk
00:00:14]} Re4 {[%clk 00:00:09]} {[%emt 00:00:03]} 45. Kf5 {[%clk 00:00:12]}
{[%emt 00:00:03]} Re2 {[%clk 00:00:08]} {[%emt 00:00:03]} 46. Bxb4 {[%clk
00:00:12]} {[%emt 00:00:02]} Rb2 {[%clk 00:00:10]} 47. Bd6 {[%clk 00:00:09]}
{[%emt 00:00:06]} Rxb3 {[%clk 00:00:11]} 48. Kg5 {[%clk 00:00:11]} a5 {[%clk
00:00:12]} 49. Kxh5 {[%clk 00:00:11]} {[%emt 00:00:05]} a4 {[%clk 00:00:13]}
0-1

[Event "Nové Hrady - Blesk"]
[Site "Nové Hrady, Czech Republic"]
[Date "2023.08.17"]
[Round "8.3"]
[White "Blazek, Jiri"]
[Black "Papacek, Stepan"]
[Result "0-1"]
[TimeControl "2x3+2s"]
[WhiteFideId "330515"]
[BlackFideId "301035"]
[WhiteElo "2061"]
[BlackElo "2137"]

1. d4 {[%clk 00:03:02]} {[%emt 00:00:03]} g6 {[%clk 00:03:02]} 2. e3 {[%clk
00:03:00]} {[%emt 00:00:05]} Bg7 {[%clk 00:03:03]} {[%emt 00:00:01]} 3. Bd3
{[%clk 00:03:01]} c5 {[%clk 00:03:00]} {[%emt 00:00:05]} 4. c3 {[%clk
00:03:02]} d6 {[%clk 00:02:46]} {[%emt 00:00:16]} 5. Ne2 {[%clk 00:03:00]}
{[%emt 00:00:04]} b6 {[%clk 00:02:42]} {[%emt 00:00:07]} 6. O-O {[%clk
00:02:59]} {[%emt 00:00:03]} Bb7 {[%clk 00:02:43]} 7. f3 {[%clk 00:02:53]}
{[%emt 00:00:09]} e5 {[%clk 00:02:34]} {[%emt 00:00:10]} 8. Bb5+ {[%clk
00:02:33]} {[%emt 00:00:22]} Nd7 {[%clk 00:02:24]} {[%emt 00:00:12]} 9. dxe5
{[%clk 00:02:29]} {[%emt 00:00:07]} dxe5 {[%clk 00:02:23]} {[%emt 00:00:02]} 10.
f4 {[%clk 00:02:09]} {[%emt 00:00:22]} a6 {[%clk 00:02:08]} {[%emt 00:00:18]}
11. Bxd7+ {[%clk 00:01:30]} {[%emt 00:00:40]} Qxd7 {[%clk 00:02:09]} 12. Qxd7+
{[%clk 00:01:29]} {[%emt 00:00:04]} Kxd7 {[%clk 00:02:10]} 13. fxe5 {[%clk
00:01:25]} {[%emt 00:00:08]} Rf8 {[%clk 00:01:53]} {[%emt 00:00:18]} 14. Nd2
{[%clk 00:01:03]} {[%emt 00:00:24]} Bxe5 {[%clk 00:01:52]} {[%emt 00:00:04]} 15.
Nc4 {[%clk 00:00:58]} {[%emt 00:00:13]} Bc7 {[%clk 00:01:52]} 16. Nf4 {[%clk
00:00:53]} {[%emt 00:00:02]} b5 {[%clk 00:01:26]} {[%emt 00:00:28]} 17. Nd2
{[%clk 00:00:36]} {[%emt 00:00:19]} Ne7 {[%clk 00:01:21]} {[%emt 00:00:07]} 18.
Nf3 {[%clk 00:00:35]} {[%emt 00:00:04]} Kc8 {[%clk 00:00:54]} {[%emt 00:00:29]}
19. b3 {[%clk 00:00:29]} {[%emt 00:00:08]} Bxf3 {[%clk 00:00:37]} {[%emt
00:00:19]} 20. Rxf3 {[%clk 00:00:27]} {[%emt 00:00:03]} Be5 {[%clk 00:00:38]}
21. Ba3 {[%clk 00:00:25]} {[%emt 00:00:06]} Rd8 {[%clk 00:00:34]} {[%emt
00:00:06]} 22. Bxc5 {[%clk 00:00:21]} {[%emt 00:00:07]} Nf5 {[%clk 00:00:35]}
23. Bd4 {[%clk 00:00:17]} {[%emt 00:00:06]} Rhe8 {[%clk 00:00:35]} {[%emt
00:00:02]} 24. a4 {[%clk 00:00:17]} {[%emt 00:00:01]} b4 {[%clk 00:00:33]}
{[%emt 00:00:04]} 25. Bxe5 {[%clk 00:00:17]} {[%emt 00:00:03]} Rxe5 {[%clk
00:00:34]} 26. cxb4 {[%clk 00:00:18]} Rxe3 {[%clk 00:00:31]} {[%emt 00:00:06]}
27. Rc1+ {[%clk 00:00:17]} {[%emt 00:00:03]} Kb7 {[%clk 00:00:32]} 28. Rxe3
{[%clk 00:00:16]} {[%emt 00:00:05]} Nxe3 {[%clk 00:00:32]} 29. Kf2 {[%clk
00:00:11]} {[%emt 00:00:08]} Nf5 {[%clk 00:00:27]} {[%emt 00:00:07]} 30. Ne2
{[%clk 00:00:12]} Rd2 {[%clk 00:00:28]} 31. a5 {[%clk 00:00:10]} {[%emt
00:00:08]} Rb2 {[%clk 00:00:27]} 32. Rc3 {[%clk 00:00:10]} {[%emt 00:00:02]}
Nd4 {[%clk 00:00:28]} 33. Re3 {[%clk 00:00:11]} {[%emt 00:00:02]} Nxe2 {[%clk
00:00:28]} {[%emt 00:00:03]} 34. Rxe2 {[%clk 00:00:12]} Rxb3 {[%clk 00:00:29]}
35. Re7+ {[%clk 00:00:12]} {[%emt 00:00:04]} Kc6 {[%clk 00:00:30]} 36. Rxf7
Rxb4 {[%emt 00:00:03]} 37. Rf6+ {[%clk 00:00:08]} {[%emt 00:00:03]} Kb5 {[%clk
00:00:31]} 38. Rf7 {[%clk 00:00:09]} {[%emt 00:00:03]} h5 {[%clk 00:00:31]}
{[%emt 00:00:02]} 39. Rg7 {[%clk 00:00:09]} Rg4 {[%clk 00:00:31]} {[%emt
00:00:02]} 40. h3 {[%clk 00:00:10]} Rg5 {[%clk 00:00:34]} 0-1

[Event "Nové Hrady - Blesk"]
[Site "Nové Hrady, Czech Republic"]
[Date "2023.08.17"]
[Round "8.4"]
[White "Babula, Milan"]
[Black "Hostička, František"]
[Result "0-1"]
[TimeControl "2x3+2s"]
[WhiteFideId "300632"]
[BlackFideId "302295"]
[WhiteElo "2176"]
[BlackElo "2074"]

1. e4 {[%clk 00:03:03]} {[%emt 00:10:12]} Nf6 {[%clk 00:03:04]} 2. Nc3 {[%clk
00:03:03]} {[%emt 00:00:03]} d5 {[%clk 00:03:05]} 3. e5 {[%clk 00:03:03]} Ne4
{[%clk 00:03:07]} 4. d4 {[%clk 00:02:52]} {[%emt 00:00:16]} Nxc3 {[%clk
00:03:07]} {[%emt 00:00:01]} 5. bxc3 {[%clk 00:02:52]} c5 {[%clk 00:03:08]}
{[%emt 00:00:03]} 6. Nf3 {[%clk 00:02:41]} {[%emt 00:00:13]} Nc6 {[%clk
00:03:06]} {[%emt 00:00:05]} 7. Be3 {[%clk 00:02:36]} {[%emt 00:00:07]} Qa5
{[%clk 00:03:03]} {[%emt 00:00:05]} 8. Qd2 {[%clk 00:02:35]} {[%emt 00:00:02]}
Bg4 {[%clk 00:03:00]} {[%emt 00:00:05]} 9. h3 {[%clk 00:02:28]} {[%emt
00:00:10]} Bxf3 {[%clk 00:03:01]} 10. gxf3 {[%clk 00:02:29]} e6 {[%clk
00:03:01]} {[%emt 00:00:04]} 11. f4 {[%clk 00:02:29]} {[%emt 00:00:02]} cxd4
{[%clk 00:03:02]} 12. cxd4 {[%clk 00:02:29]} {[%emt 00:00:02]} Bb4 {[%clk
00:03:03]} 0-1